lending/lending_fUSD_20240124
["ID","MTS","AMOUNT","RATE_DAILY","PERIOD"]
[312643024,1706122379960,-500.0,0.0005178,31]
[312643025,1706122379969,-500.0,0.0005178,31]
[312643026,1706122379979,-500.0,0.0005178,31]
[312643027,1706122379989,-774.89,0.0005178,31]
[312643028,1706122380000,-518.90189696,0.0005178,31]
[312643029,1706122380010,-598.13,0.0005178,31]
[312643030,1706122380021,-590.69,0.0005178,31]
[312643031,1706122380031,-822.96,0.0005178,31]
[312643032,1706122380041,-1001.25,0.0005178,31]
[312643033,1706122380052,-500.0,0.0005178,31]
[312643034,1706122380062,-557.33,0.0005178,31]
[312643035,1706122380072,-500.0,0.0005178,31]
[312643036,1706122380082,-739.58,0.0005178,31]
[312643037,1706122380091,-1123.3,0.0005178,31]
[312643038,1706122380102,-559.97,0.0005178,31]
[312643039,1706122380111,-500.0,0.0005178,31]
[312643040,1706122380122,-545.51,0.0005178,31]
[312643041,1706122380134,-703.65,0.0005178,31]
[312643042,1706122380143,-500.0,0.0005178,31]
[312643043,1706122380153,-535.27,0.0005178,31]
[312643044,1706122380163,-500.0,0.0005178,31]
[312643045,1706122380175,-507.77,0.0005178,31]
[312643046,1706122380185,-500.0,0.0005178,31]
[312643047,1706122380196,-500.0,0.0005178,31]
[312643048,1706122380205,-500.0,0.0005178,31]
[312643049,1706122380216,-540.51,0.0005178,31]
[312643050,1706122380226,-744.37,0.0005178,31]
[312643051,1706122380236,-500.0,0.0005178,31]
[312643052,1706122380246,-638.61,0.0005178,31]
[312643053,1706122380255,-500.0,0.0005178,31]
[312643054,1706122380265,-664.27,0.0005178,31]
[312643055,1706122380276,-623.83,0.0005178,31]
[312643056,1706122380285,-500.0,0.0005178,31]
[312643057,1706122380295,-1168.99,0.0005178,31]
[312643058,1706122380308,-1288.27,0.0005178,31]
[312643059,1706122380317,-607.42113969,0.0005178,31]
[312643060,1706122380326,-500.0,0.0005178,31]
[312643061,1706122380335,-500.0,0.0005178,31]
[312643062,1706122380346,-1216.74,0.0005178,31]
[312643063,1706122380355,-1358.17,0.0005178,31]
[312643064,1706122380364,-500.0,0.0005178,31]
[312643065,1706122380373,-789.81,0.0005178,31]
[312643066,1706122380384,-500.0,0.0005178,31]
[312643067,1706122380394,-500.0,0.0005178,31]
[312643068,1706122380403,-500.0,0.0005178,31]
[312643069,1706122380413,-500.0,0.0005178,31]
[312643070,1706122380423,-835.3,0.0005178,31]
[312643071,1706122380432,-500.0,0.0005178,31]
[312643072,1706122380442,-5442.29,0.0005178,31]
[312643073,1706122380451,-500.0,0.0005178,31]
[312643074,1706122380461,-609.87,0.0005178,31]
[312643075,1706122380470,-500.0,0.0005178,31]
[312643076,1706122380479,-541.32609247,0.0005178,31]
[312643077,1706122380489,-500.0,0.0005178,31]
[312643078,1706122380499,-500.0,0.0005178,31]
[312643079,1706122380508,-500.0,0.0005178,31]
[312643080,1706122380518,-500.0,0.0005178,31]
[312643081,1706122380527,-766.55,0.0005178,31]
[312643082,1706122380536,-1213.12,0.0005178,31]
[312643083,1706122380546,-950.1,0.0005178,31]
[312643084,1706122380555,-891.54,0.0005178,31]
[312643085,1706122380564,-789.01,0.0005178,31]
[312643086,1706122380574,-571.48,0.0005178,31]
[312643087,1706122380583,-674.93,0.0005178,31]
[312643088,1706122380592,-500.0,0.0005178,31]
[312643089,1706122380602,-754.8,0.0005178,31]
[312643090,1706122380610,-540.1411709,0.0005178,31]
[312643091,1706122380619,-994.52,0.0005178,31]
[312643092,1706122380630,-619.7,0.0005178,31]
[312643093,1706122380639,-1265.56,0.0005178,31]
[312643094,1706122380649,-553.3,0.0005178,31]
[312643095,1706122380659,-500.0,0.0005178,31]
[312643096,1706122380669,-1070.96,0.0005178,31]
[312643097,1706122380678,-697.79,0.0005178,31]
[312643098,1706122380688,-1012.33,0.0005178,31]
[312643099,1706122380698,-500.0,0.0005178,31]
[312643100,1706122380708,-1137.93,0.0005178,31]
[312643101,1706122380717,-876.45,0.0005178,31]
[312643102,1706122380727,-500.0,0.0005178,31]
[312643103,1706122380736,-715.02,0.0005178,31]
[312643104,1706122380746,-500.0,0.0005178,7]
[312643105,1706122380756,-500.0,0.0005178,31]
[312643106,1706122380765,-833.81,0.0005178,31]
[312643107,1706122380776,-500.0,0.0005178,31]
[312643108,1706122380785,-1061.9,0.0005178,31]
[312643109,1706122380795,-1257.58,0.0005178,31]
[312643110,1706122380804,-500.0,0.0005178,31]
[312643111,1706122380813,-500.0,0.0005178,31]
[312643112,1706122380822,-980.87,0.0005178,31]
[312643113,1706122380832,-642.76,0.0005178,31]
[312643114,1706122380842,-2365.7,0.0005178,31]
[312643115,1706122380851,-550.34,0.0005178,31]
[312643116,1706122380860,-500.0,0.0005178,31]
[312643117,1706122380869,-9651.62,0.0005178,5]
[312643118,1706122380880,-516.0,0.0005178,31]
[312643119,1706122380889,-1273.8,0.0005178,31]
[312643120,1706122380898,-259.15,0.0005178,31]
[312643121,1706122380908,-500.0,0.0005178,31]
[312643122,1706122380918,-848.97,0.0005178,31]
[312643123,1706122380927,-826.53,0.0005178,31]
[312643124,1706122380937,-500.0,0.0005178,31]
[312643125,1706122380946,-500.0,0.0005178,31]
[312643126,1706122380956,-570.78,0.0005178,31]
[312643127,1706122380965,-500.0,0.0005178,31]
[312643128,1706122380975,-750.28,0.0005178,31]
[312643129,1706122380985,-1277.6,0.0005178,31]
[312643130,1706122380995,-886.52,0.0005178,31]
[312643131,1706122381006,-744.61,0.0005178,31]
[312643132,1706122381015,-500.0,0.0005178,31]
[312643133,1706122381024,-688.18,0.0005178,31]
[312643134,1706122381033,-6353.27,0.0005178,5]
[312643135,1706122381042,-500.0,0.0005178,31]
[312643136,1706122381052,-585.99,0.0005178,31]
[312643137,1706122381061,-647.3,0.0005178,31]
[312643138,1706122381071,-525.37655287,0.0005178,31]
[312643139,1706122381080,-500.0,0.0005178,31]
[312643140,1706122381089,-1311.12,0.0005178,31]
[312643141,1706122381099,-500.0,0.0005178,31]
[312643142,1706122381108,-500.0,0.0005178,31]
[312643143,1706122381118,-2747.11,0.0005178,31]
[312643144,1706122381127,-635.69,0.0005178,31]
[312643145,1706122381137,-500.0,0.0005178,31]
[312643146,1706122381146,-1064.36,0.0005178,31]
[312643147,1706122381155,-500.0,0.0005178,31]
[312643148,1706122381165,-988.82,0.0005178,31]
[312643149,1706122381174,-336.97,0.0005178,31]
[312643150,1706122381183,-500.0,0.0005178,31]
[312643151,1706122381193,-500.0,0.0005178,31]
[312643152,1706122381203,-506.02,0.0005178,31]
[312643153,1706122381213,-561.46096733,0.0005178,31]
[312643154,1706122381222,-4014.55,0.0005178,31]
[312643155,1706122381232,-996.79,0.0005178,31]
[312643156,1706122381241,-879.67,0.0005178,31]
[312643157,1706122381250,-500.0,0.0005178,31]
[312643158,1706122381260,-556.81,0.0005178,31]
[312643159,1706122381269,-500.0,0.0005178,31]
[312643160,1706122381278,-1740.65,0.0005178,31]
[312643161,1706122381287,-1603.09,0.0005178,31]
[312643162,1706122381297,-722.88,0.0005178,31]
[312643163,1706122381308,-500.0,0.0005178,31]
[312643164,1706122381319,-891.73,0.0005178,31]
[312643165,1706122381328,-703.85,0.0005178,31]
[312643166,1706122381338,-1257.39,0.0005178,31]
[312643167,1706122381347,-240.24166546,0.0005178,31]
[312643168,1706122381357,-500.0,0.0005178,31]
[312643169,1706122381367,-534.53,0.0005178,31]
[312643170,1706122381376,-4733.77,0.0005178,31]
[312643171,1706122381386,-3077.84,0.0005178,31]
[312643172,1706122381395,-2216.62,0.0005178,31]
[312643173,1706122381406,-500.0,0.0005178,31]
[312643174,1706122381416,-1335.18,0.0005178,31]
[312643175,1706122381425,-654.54,0.0005178,31]
[312643176,1706122381435,-500.0,0.0005178,31]
[312643177,1706122381445,-820.02,0.0005178,31]
[312643178,1706122381454,-603.22,0.0005178,31]
[312643179,1706122381464,-4058.85,0.0005178,31]
[312643180,1706122381474,-870.48,0.0005178,31]
[312643181,1706122381483,-550.38852443,0.0005178,30]
[312643182,1706122381492,-1196.3,0.0005178,31]
[312643183,1706122381502,-691.03,0.0005178,31]
[312643184,1706122381512,-500.0,0.0005178,31]
[312643185,1706122381521,-506.34,0.0005178,31]
[312643186,1706122381530,-500.0,0.0005178,31]
[312643187,1706122381539,-500.0,0.0005178,31]
[312643188,1706122381549,-1595.23,0.0005178,31]
[312643189,1706122381558,-9475.21,0.0005178,31]
[312643190,1706122381567,-2256.81,0.0005178,31]
[312643191,1706122381577,-500.0,0.0005178,31]
[312643192,1706122381586,-500.0,0.0005178,31]
[312643193,1706122381596,-500.0,0.0005178,31]
[312643194,1706122381606,-504.15,0.0005178,31]
[312643195,1706122381616,-500.0,0.0005178,31]
[312643196,1706122381626,-949.97,0.0005178,31]
[312643197,1706122381636,-2007.79,0.0005178,31]
[312643198,1706122381645,-760.02,0.0005178,31]
[312643199,1706122381655,-960.34,0.0005178,31]
[312643200,1706122381665,-1753.67,0.0005178,2]
[312643201,1706122381674,-895.93,0.0005178,31]
[312643202,1706122381684,-500.0,0.0005178,31]
[312643203,1706122381694,-500.0,0.0005178,31]
[312643204,1706122381704,-500.0,0.0005178,31]
[312643205,1706122381714,-500.0,0.0005178,31]
[312643206,1706122381724,-9793.91,0.0005178,31]
[312643207,1706122381734,-630.07,0.0005178,31]
[312643208,1706122381743,-500.0,0.0005178,31]
[312643209,1706122381753,-1085.19,0.0005178,31]
[312643210,1706122381763,-500.0,0.0005178,31]
[312643211,1706122381773,-733.81,0.0005178,31]
[312643212,1706122381783,-822.62,0.0005178,31]
[312643213,1706122381793,-786.38,0.0005178,31]
[312643214,1706122381804,-583.81,0.0005178,31]
[312643215,1706122381814,-5724.55,0.0005178,31]
[312643216,1706122381825,-1209.52,0.0005178,31]
[312643217,1706122381835,-500.0,0.0005178,31]
[312643218,1706122381845,-921.04,0.0005178,31]
[312643219,1706122381855,-1294.87,0.0005178,31]
[312643220,1706122381865,-593.18,0.0005178,31]
[312643221,1706122381875,-2304.75,0.0005178,31]
[312643222,1706122381885,-500.0,0.0005178,31]
[312643223,1706122381894,-1239.0,0.0005178,31]
[312643224,1706122381904,-604.69,0.0005178,31]
[312643225,1706122381913,-650.95,0.0005178,31]
[312643226,1706122381923,-500.0,0.0005178,31]
[312643227,1706122381932,-1539.95,0.0005178,31]
[312643228,1706122381942,-8834.98,0.0005178,31]
[312643229,1706122381951,-500.0,0.0005178,31]
[312643230,1706122381962,-500.0,0.0005178,31]
[312643231,1706122381972,-547.48,0.0005178,31]
[312643232,1706122381982,-500.0,0.0005178,31]
[312643233,1706122381992,-1282.38,0.0005178,31]
[312643234,1706122382002,-2142.95,0.0005178,7]
[312643235,1706122382011,-966.05,0.0005178,31]
[312643236,1706122382021,-747.91,0.0005178,31]
[312643237,1706122382032,-1871.41,0.0005178,31]
[312643238,1706122382041,-912.87,0.0005178,31]
[312643239,1706122382051,-1116.62,0.0005178,31]
[312643240,1706122382061,-833.57,0.0005178,31]
[312643241,1706122382071,-1268.63,0.0005178,31]
[312643242,1706122382081,-646.44,0.0005178,31]
[312643243,1706122382092,-657.31,0.0005178,31]
[312643244,1706122382101,-731.18,0.0005178,31]
[312643245,1706122382110,-500.0,0.0005178,31]
[312643246,1706122382120,-500.0,0.0005178,31]
[312643247,1706122382130,-1207.08,0.0005178,31]
[312643248,1706122382140,-1174.69,0.0005178,31]
[312643249,1706122382150,-500.0,0.0005178,31]
[312643250,1706122382159,-500.0,0.0005178,31]
[312643251,1706122382169,-2581.31,0.0005178,31]
[312643252,1706122382179,-740.71,0.0005178,31]
[312643253,1706122382189,-1329.41,0.0005178,31]
[312643254,1706122382199,-545.75,0.0005178,31]
[312643255,1706122382210,-1032.28,0.0005178,7]
[312643256,1706122382219,-1378.41,0.0005178,31]
[312643257,1706122382229,-500.0,0.0005178,31]
[312643258,1706122382239,-500.0,0.0005178,31]
[312643259,1706122382249,-1309.93,0.0005178,31]
[312643260,1706122382258,-500.0,0.0005178,31]
[312643261,1706122382268,-973.63,0.0005178,31]
[312643262,1706122382279,-500.0,0.0005178,31]
[312643263,1706122382289,-500.0,0.0005178,31]
[312643264,1706122382298,-1370.14,0.0005178,31]
[312643265,1706122382316,-500.0,0.0005178,31]
[312643266,1706122382523,-504.09763251,0.0005178,31]
[312643267,1706122382559,-500.0,0.0005178,31]
[312643268,1706122382569,-625.5,0.0005178,31]
[312643269,1706122382581,-500.0,0.0005178,31]
[312643270,1706122382590,-561.88,0.0005178,31]
[312643271,1706122382600,-500.0,0.0005178,31]
[312643272,1706122382609,-500.0,0.0005178,31]
[312643273,1706122382618,-4191.4,0.0005178,31]
[312643274,1706122382628,-1086.56,0.0005178,31]
[312643275,1706122382638,-500.0,0.0005178,31]
[312643276,1706122382648,-1202.1,0.0005178,31]
[312643277,1706122382657,-1256.89,0.0005178,31]
[312643278,1706122382667,-712.36,0.0005178,31]
[312643279,1706122382677,-1151.56,0.0005178,31]
[312643280,1706122382687,-593.19,0.0005178,31]
[312643281,1706122382697,-500.0,0.0005178,31]
[312643282,1706122382707,-1249.41,0.0005178,31]
[312643283,1706122382717,-500.0,0.0005178,31]
[312643284,1706122382727,-500.0,0.0005178,31]
[312643285,1706122382737,-500.0,0.0005178,31]
[312643286,1706122382747,-500.0,0.0005178,31]
[312643287,1706122382757,-1307.18,0.0005178,31]
[312643288,1706122382766,-795.62,0.0005178,31]
[312643289,1706122382776,-500.0,0.0005178,31]
[312643290,1706122382785,-749.12,0.0005178,31]
[312643291,1706122382795,-500.0,0.0005178,31]
[312643292,1706122382805,-500.0,0.0005178,14]
[312643293,1706122382815,-696.33,0.0005178,31]
[312643294,1706122382826,-500.0,0.0005178,31]
[312643295,1706122382836,-1284.18,0.0005178,31]
[312643296,1706122382845,-652.98,0.0005178,31]
[312643297,1706122382855,-523.2,0.0005178,31]
[312643298,1706122382865,-648.47,0.0005178,31]
[312643299,1706122382875,-981.53,0.0005178,31]
[312643300,1706122382885,-510.01,0.0005178,31]
[312643301,1706122382896,-609.97,0.0005178,31]
[312643302,1706122382906,-668.31,0.0005178,31]
[312643303,1706122382915,-1472.4,0.0005178,31]
[312643304,1706122382925,-982.27,0.0005178,31]
[312643305,1706122382935,-500.0,0.0005178,31]
[312643306,1706122382945,-500.0,0.0005178,31]
[312643307,1706122382956,-1275.47,0.0005178,20]
[312643308,1706122382966,-975.67,0.0005178,31]
[312643309,1706122382976,-859.46,0.0005178,31]
[312643310,1706122382985,-2167.45,0.0005178,31]
[312643311,1706122382995,-500.0,0.0005178,31]
[312643312,1706122383005,-500.0,0.0005178,31]
[312643313,1706122383015,-666.0,0.0005178,31]
[312643314,1706122383024,-1089.95,0.0005178,31]
[312643315,1706122383034,-641.64,0.0005178,31]
[312643316,1706122383044,-924.64,0.0005178,31]
[312643317,1706122383054,-500.0,0.0005178,31]
[312643318,1706122383063,-1430.01,0.0005178,31]
[312643319,1706122383073,-536.15,0.0005178,31]
[312643320,1706122383083,-589.35,0.0005178,31]
[312643321,1706122383093,-500.0,0.0005178,31]
[312643322,1706122383103,-1129.08,0.0005178,31]
[312643323,1706122383113,-6481.22,0.0005178,31]
[312643324,1706122383122,-1564.68,0.0005178,31]
[312643325,1706122383131,-944.64,0.0005178,31]
[312643326,1706122383141,-500.0,0.0005178,31]
[312643327,1706122383150,-500.0,0.0005178,30]
[312643328,1706122383159,-1816.2,0.0005178,31]
[312643329,1706122383169,-500.0,0.0005178,31]
[312643330,1706122383178,-887.53,0.0005178,31]
[312643331,1706122383188,-677.18,0.0005178,31]
[312643332,1706122383197,-1137.33,0.0005178,31]
[312643333,1706122383207,-1033.79,0.0005178,31]
[312643334,1706122383217,-952.51,0.0005178,31]
[312643335,1706122383226,-750.26,0.0005178,31]
[312643336,1706122383236,-500.0,0.0005178,31]
[312643337,1706122383246,-616.97,0.0005178,31]
[312643338,1706122383255,-500.0,0.0005178,7]
[312643339,1706122383265,-500.0,0.0005178,31]
[312643340,1706122383274,-1156.88,0.0005178,31]
[312643341,1706122383283,-575.07,0.0005178,31]
[312643342,1706122383292,-7701.48,0.0005178,15]
[312643343,1706122383305,-500.0,0.0005178,31]
[312643344,1706122383314,-500.0,0.0005178,31]
[312643345,1706122383323,-508.6,0.0005178,31]
[312643346,1706122383333,-571.75,0.0005178,31]
[312643347,1706122383342,-588.05,0.0005178,31]
[312643348,1706122383352,-828.94,0.0005178,31]
[312643349,1706122383362,-500.0,0.0005178,31]
[312643350,1706122383372,-544.84264531,0.0005178,31]
[312643351,1706122383382,-532.52,0.0005178,31]
[312643352,1706122383394,-1048.36,0.0005178,31]
[312643353,1706122383403,-732.05,0.0005178,31]
[312643354,1706122383413,-952.74,0.0005178,31]
[312643355,1706122383423,-1176.12,0.0005178,31]
[312643356,1706122383433,-1417.3,0.0005178,2]
[312643357,1706122383443,-1220.83,0.0005178,31]
[312643358,1706122383452,-921.3,0.0005178,31]
[312643359,1706122383461,-897.04,0.0005178,31]
[312643360,1706122383471,-5880.03,0.0005178,31]
[312643361,1706122383481,-500.0,0.0005178,31]
[312643362,1706122383491,-1858.89,0.0005178,31]
[312643363,1706122383501,-500.0,0.0005178,31]
[312643364,1706122383511,-500.0,0.0005178,31]
[312643365,1706122383521,-550.81,0.0005178,31]
[312643366,1706122383530,-500.0,0.0005178,31]
[312643367,1706122383540,-500.0,0.0005178,31]
[312643368,1706122383549,-1157.35,0.0005178,31]
[312643369,1706122383559,-739.19,0.0005178,31]
[312643370,1706122383568,-889.14,0.0005178,31]
[312643371,1706122383578,-500.0,0.0005178,31]
[312643372,1706122383587,-1017.77,0.0005178,31]
[312643373,1706122383597,-500.0,0.0005178,31]
[312643374,1706122383607,-899.45,0.0005178,31]
[312643375,1706122383617,-1542.77,0.0005178,31]
[312643376,1706122383627,-1135.37,0.0005178,31]
[312643377,1706122383638,-502.38,0.0005178,31]
[312643378,1706122383648,-1208.25,0.0005178,31]
[312643379,1706122383658,-159.0,0.00051781,8]
[312643380,1706122383668,-152.0,0.00051836,6]
[312643381,1706122383678,-300.0,0.000519,28]
[312643382,1706122383687,-264177.808571,0.0005198,30]
[312643383,1706122383697,-173.89963539,0.0005199,7]
[312643384,1706122383707,-1856.0,0.0005199,2]
[312643385,1706122383717,-102780.8970228,0.00052,15]
[312643386,1706122383727,-150.0,0.00052,30]
[312643387,1706122383737,-10237.0,0.00052,7]
[312643388,1706122383747,-2017.04149167,0.00052,14]
[312643389,1706122383757,-2000.0,0.00052,30]
[312643390,1706122383767,-2088.28243991,0.00052,2]
[312643391,1706122383777,-150.0,0.00052,2]
[312643392,1706122383786,-3988.73121743,0.00052,30]
[312643393,1706122385014,-2465.97501709,0.000327,2]
[312643394,1706122385025,-189.40791522,0.0005069,2]
[312643395,1706122385046,-670.59208478,0.0005069,2]
[312643396,1706122385055,-3082.31640773,0.0005079,2]
[312643397,1706122386039,-1992.9,0.00023164,2]
[312643398,1706122387667,-2960.8137353,0.00023164,2]
[312643399,1706122387678,-738.41,0.00049315,31]
[312643400,1706122387687,-500.0,0.00049315,31]
[312643401,1706122387698,-738.41,0.00049589,31]
[312643402,1706122387709,-500.0,0.00049589,31]
[312643403,1706122387719,-738.41,0.00049863,31]
[312643404,1706122387729,-500.0,0.00049863,31]
[312643405,1706122387739,-1573.68359227,0.0005079,2]
[312643406,1706122387750,-1587.09564054,0.0005089,2]
[312643407,1706122387763,-458.0,0.0005089,2]
[312643408,1706122388265,-5129.90435946,0.0005089,2]
[312643409,1706122388275,-746.0,0.0005199,2]
[312643410,1706122388285,-1084.69986397,0.00052,30]
[312643411,1706122388342,-1003.84292822,0.00023164,2]
[312643412,1706122388351,-234.13626806,0.00052,30]
[312643413,1706122388365,-463.5635001,0.00052,30]
[312643414,1706122388376,-341.74739,0.00052,30]
[312643415,1706122388442,-738.41,0.00050136,31]
[312643416,1706122388453,-1911.59,0.00052,30]
[312643417,1706122388469,-500.0,0.00050136,31]
[312643418,1706122388479,-177.73828809,0.00052,30]
[312643419,1706122388491,-373.5068174,0.00052,30]
[312643420,1706122388545,-42925.68138315,0.00052,30]
[312643421,1706122419347,729.71333079,0.00021002,2]
[312643422,1706122421552,155.6167209,0.00020428,2]
[312643423,1706122423125,155.3777303,0.00020428,2]
[312643424,1706122426270,-1009.12489945,0.00022698,2]
[312643425,1706122426291,-6531.79543114,0.00022698,2]
[312643426,1706122426310,-155.0,0.00022699,2]
[312643427,1706122426335,-718.0381,0.000227,2]
[312643428,1706122426354,-1000.0,0.000227,2]
[312643429,1706122426375,-6291.2787,0.000227,2]
[312643430,1706122426394,-19294.76286941,0.000227,2]
[312643431,1706122428092,35168.36646877,0.00020427,2]
[312643432,1706122428548,2612.30933236,0.00021001,2]
[312643443,1706122466677,-1000.0,0.00022696,2]
[312643457,1706122503641,1658.00299899,0.00020994,2]
[312643468,1706122561168,6089.46292903,0.00020994,2]
[312643469,1706122561351,616.35924009,0.00020994,2]
[312643470,1706122562971,500.0,0.00020994,2]
[312643475,1706122571384,853.35624528,0.00020994,2]
[312643478,1706122579169,5214.89911458,0.00020994,2]
[312643479,1706122583154,155.0,0.00020994,2]
[312643480,1706122583350,1099.06361557,0.00020994,2]
[312643481,1706122585387,853.35624528,0.00020994,2]
[312643482,1706122594199,287.36771257,0.00020994,2]
[312643483,1706122599568,759.03974948,0.00020994,2]
[312643484,1706122603357,422.7064011,0.00020994,2]
[312643485,1706122605156,206.64153193,0.00020994,2]
[312643486,1706122621491,179.62152121,0.00020994,2]
[312643487,1706122652959,213.1,0.00018916,2]
[312643488,1706122801346,2084.97012239,0.00020994,2]
[312643489,1706122836151,516.49,0.00019827,2]
[312643490,1706122873160,160.25924555,0.00021598,2]
[312643491,1706123021245,250.0,0.00021636,2]
[312643492,1706123036421,279.84,0.00021635,2]
[312643493,1706123043646,25443.63,0.00021635,2]
[312643500,1706123148906,200.0,0.0002142,2]
[312643501,1706123153607,2478.67,0.0002142,2]
[312643505,1706123185403,176.4,0.00021422,2]
[312643518,1706123237096,2491.56,0.00021415,2]
[312643520,1706123242351,-500.0,0.00021684,2]
[312643524,1706123250444,-200.0,0.00021684,2]
[312643529,1706123268526,490.66,0.00019498,2]
[312643532,1706123279016,22105.19,0.00021408,2]
[312643534,1706123293698,974.49,0.00021408,2]
[312643537,1706123360504,1000.0,0.00021441,2]
[312643538,1706123378787,200.0,0.00021441,2]
[312643539,1706123424856,2000.0,0.00021432,2]
[312643550,1706123431483,-420.05335618,0.00021643,2]
[312643551,1706123431493,-1607.54541268,0.00021643,2]
[312643552,1706123431505,-468.5188612,0.00021643,2]
[312643553,1706123431542,-1118.00827006,0.00021643,2]
[312643554,1706123431552,-7619.88,0.00021644,2]
[312643555,1706123431562,-731.72349594,0.00021679,2]
[312643556,1706123431573,-150.0,0.00021697,2]
[312643557,1706123431584,-150.0,0.00021698,2]
[312643558,1706123431594,-490.66,0.00021761,2]
[312643559,1706123431604,-155.46,0.00021788,2]
[312643560,1706123431613,-7304.268234,0.00021878,2]
[312643561,1706123431626,-538.89466019,0.00021878,2]
[312643562,1706123431643,-580.09952,0.00021878,2]
[312643563,1706123431670,-2020.71528,0.00021878,2]
[312643564,1706123431691,-300.31024141,0.00021878,2]
[312643565,1706123431702,-412.74688738,0.00021878,2]
[312643604,1706123433288,500.0,0.00021432,2]
[312643617,1706123437482,-2278.8,0.00021878,2]
[312643620,1706123437494,-478.40717702,0.00021878,2]
[312643622,1706123437505,-250.0,0.00021918,2]
[312643624,1706123437515,-343.67,0.00021918,2]
[312643626,1706123437524,-155.46,0.00021978,2]
[312643628,1706123437535,-164.39,0.00021978,2]
[312643630,1706123437544,-150.0,0.00022,2]
[312643632,1706123437553,-150.0,0.00022,2]
[312643634,1706123437563,-155.38,0.00022028,2]
[312643636,1706123437572,-2552.45,0.00022091,2]
[312643638,1706123437581,-587.87,0.00022091,2]
[312643640,1706123437591,-155.46,0.00022167,2]
[312643642,1706123437600,-155.46,0.00022356,2]
[312643644,1706123437609,-1721.35645442,0.00022445,2]
[312643647,1706123437638,-814.31477801,0.00022445,2]
[312643650,1706123437650,-5084.20876757,0.00022445,2]
[312643652,1706123437659,-6259.10929454,0.00022488,2]
[312643653,1706123437672,-298.62800448,0.00022488,2]
[312643654,1706123437685,-596.80279121,0.00022488,2]
[312643655,1706123437694,-291.09518721,0.00022542,2]
[312643657,1706123437705,-5653.90481279,0.00022542,2]
[312643659,1706123437717,-155.46,0.00022545,2]
[312643661,1706123437726,-279.69091136,0.00022548,2]
[312643662,1706123437735,-236.25268828,0.00022549,2]
[312643664,1706123437744,-1556.1172,0.0002255,2]
[312643666,1706123437754,-19040.4246257,0.0002255,2]
[312643668,1706123437765,-5248.9,0.0002255,2]
[312643670,1706123437777,-1856.1670097,0.0002255,2]
[312643672,1706123437789,-2298.07431147,0.0002255,2]
[312643674,1706123437805,-5440.85081014,0.0002255,2]
[312643675,1706123437816,-1764.92992517,0.0002255,2]
[312643676,1706123437828,-1964.80499613,0.0002255,2]
[312643680,1706123437856,-5568.29692822,0.0002255,2]
[312643683,1706123437866,-15022.61729347,0.0002255,2]
[312643685,1706123437875,-159.44714295,0.00022595,2]
[312643687,1706123437885,-159.44714291,0.0002262,2]
[312643688,1706123437894,-159.44714291,0.00022646,2]
[312643691,1706123437903,-618.30616918,0.0002265,2]
[312643693,1706123437915,-4525.29631233,0.0002265,2]
[312643695,1706123437927,-1699.13,0.0002265,2]